bitfinex/quotes_ETHUSD_20220213
["timestamp","ask_amount","ask_price","bid_price","bid_amount"]
[1644729931615,0.00992138,2907.3,2907.2,6.22907079]
[1644729931816,1.56061888,2907.5,2907.2,6.22907079]
[1644729932018,0.00992139,2907.4,2907.2,6.22907079]
[1644729932418,0.00992139,2907.4,2907.3,3.42056233]
[1644729932618,0.00992139,2907.4,2907.3,3.91656233]
[1644729932818,0.00992139,2907.4,2907.3,7.59124241]
[1644729933017,1.56061888,2907.5,2907.3,7.59124241]
[1644729933018,1.56061888,2907.5,2907.3,8.59124241]
[1644729933217,1.57054008,2907.5,2907.3,8.59124241]
[1644729933866,1.57054008,2907.5,2907.4,3.40423181]
[1644729934065,1.57054008,2907.5,2907.4,3.90023181]
[1644729934266,1.56061888,2907.5,2907.4,4.0723231]
[1644729935068,1.56061888,2907.5,2907.4,5.0723231]
[1644729935669,1.56061888,2907.5,2907.4,0.66809129]
[1644729935868,1.56061888,2907.5,2907.4,5.03091031]
[1644729936069,1.56061888,2907.5,2907.4,0.66809129]
[1644729937072,1.56061888,2907.5,2907.4,4.86008891]
[1644729937511,1.56061888,2907.5,2907.4,5.90915537]
[1644729938110,1.56061888,2907.5,2907.4,2.57675775]
[1644729938715,1.56061888,2907.5,2907.4,3.57675775]
[1644729939414,1.56061888,2907.5,2907.4,6.96936338]
[1644729940614,1.56061888,2907.5,2907.4,13.17336338]
[1644729941658,1.56061888,2907.5,2907.4,12.17336338]
[1644729941858,1.56061888,2907.5,2907.4,8.78075775]
[1644729942058,1.56061888,2907.5,2907.4,12.12715814]
[1644729942059,1.60494454,2907.5,2907.4,12.12715814]
[1644729943064,1.60494454,2907.5,2907.4,13.12715814]
[1644729946318,1.60494454,2907.5,2907.4,9.78075775]
[1644729947421,1.59228007,2907.5,2907.4,9.78075775]
[1644729948421,1.59086636,2907.5,2907.4,9.78075775]
[1644729951873,1.59501701,2907.5,2907.4,10.19630573]
[1644729952617,0.00379198,2907.7,2907.4,10.19630573]
[1644729952618,0.00379198,2907.7,2907.5,3.95]
[1644729952816,0.8230514,2907.8,2907.6,5.92089303]
[1644729953022,0.00379198,2907.7,2907.6,6.09298432]
[1644729953218,0.8230514,2907.8,2907.7,0.17209129]
[1644729953515,0.8230514,2907.8,2907.7,0.66809129]
[1644729957969,0.8230514,2907.8,2907.7,0.496]
[1644729958176,2.28601405,2907.8,2907.6,3.50258879]
[1644729958370,0.8230514,2907.8,2907.6,3.50258879]
[1644729958571,1.46300062,2907.7,2907.6,3.50258879]
[1644729958772,1.46678557,2907.7,2907.6,3.50258879]
[1644729964666,1.46300062,2907.7,2907.6,3.50258879]
[1644729967075,0.82683635,2907.8,2907.6,3.67468008]
[1644729967316,1.46290802,2907.7,2907.6,3.67468008]
[1644729968218,0.83737295,2907.8,2907.6,3.67468008]
[1644729968418,1.46288571,2907.7,2907.6,3.67468008]
[1644729968821,0.83737295,2907.8,2907.6,4.17068008]
[1644729969026,0.833588,2907.8,2907.6,4.17068008]
[1644729969423,0.8230514,2907.8,2907.6,4.17068008]
[1644729969831,0.04592479,2908.3,2907.6,4.17068008]
[1644729970027,1.2082,2908.5,2908.3,1.866383]
[1644729970226,1.1354,2908.9,2908.3,2.038283]
[1644729970227,1.46268804,2908.4,2908.3,2.038283]
[1644729970524,0.86603781,2909.1,2908.4,0.17209129]
[1644729970525,0.64662263,2909.1,2908.4,0.17209129]
[1644729970722,3.29970374,2909.2,2908.5,0.1718]
[1644729970924,1.46258111,2909.1,2908.6,0.496]
[1644729971177,1.46258111,2909.1,2909.0,3.50258879]
[1644729971374,1.46258111,2909.1,2908.8,0.496]
[1644729971577,0.64662263,2909.1,2908.8,2.43851208]
[1644729972175,0.65715438,2909.1,2908.8,2.43851208]
[1644729972376,1.46258111,2909.0,2908.8,2.43851208]
[1644729972577,1.46637406,2909.0,2908.8,2.43851208]
[1644729973278,1.46258111,2908.9,2908.8,2.43851208]
[1644729973477,1.4731175,2909.0,2908.8,2.43851208]
[1644729973685,1.46258111,2908.9,2908.8,2.43851208]
[1644729977420,1.46258111,2908.9,2908.8,2.43737587]
[1644729978219,0.00379295,2909.2,2908.8,2.43737587]
[1644729978220,0.01054001,2909.0,2908.8,2.43737587]
[1644729978421,1.46258111,2908.9,2908.8,2.43737587]
[1644729979268,0.00379295,2909.2,2908.8,2.43737587]
[1644729979469,0.00379295,2909.2,2908.8,0.49486379]
[1644729979470,0.01054001,2909.0,2908.8,0.49486379]
[1644729979672,0.01054001,2909.0,2908.9,6.17418707]
[1644729979883,0.01054001,2909.0,2908.9,6.67018707]
[1644729980073,0.01054001,2909.0,2908.9,7.01407836]
[1644729980074,1.47301814,2909.0,2908.9,7.01407836]
[1644729980270,1.46247813,2909.0,2908.9,6.84227836]
[1644729980472,1.46627108,2909.6,2908.9,6.84227836]
[1644729980673,0.04215319,2909.5,2909.3,0.96096828]
[1644729980871,1.45842427,2909.4,2909.3,0.496]
[1644729981270,1.45842427,2909.4,2909.3,2.43851208]
[1644729981482,0.64662263,2909.8,2909.3,6.92138428]
[1644729981676,0.64662263,2909.9,2909.7,1.94251208]
[1644729982328,0.64662263,2909.9,2909.7,2.43851208]
[1644729982524,0.64662263,2909.9,2909.7,2.61060337]
[1644729982722,0.64662263,2910.0,2909.7,2.61060337]
[1644729982925,0.64662263,2910.0,2909.7,2.43851208]
[1644729983929,0.64662263,2909.9,2909.7,0.496]
[1644729984638,0.6533611,2910.0,2909.7,0.496]
[1644729984830,0.64662263,2909.9,2909.7,0.496]
[1644729985128,0.00673847,2910.0,2909.7,0.496]
[1644729985129,0.64662263,2910.0,2909.7,0.496]
[1644729985331,0.01053876,2909.9,2909.7,0.496]
[1644729985529,0.01433531,2909.9,2909.7,0.496]
[1644729985933,0.01433531,2909.9,2909.8,1.94251208]
[1644729986171,0.01053876,2909.9,2909.8,1.94251208]
[1644729986372,0.64662263,2910.0,2909.8,1.94251208]
[1644729986572,0.0105387,2910.0,2909.8,1.94251208]
[1644729986775,0.01433525,2910.0,2909.8,1.94251208]
[1644729987572,0.00379655,2910.0,2909.8,1.94251208]
[1644729987773,0.01053863,2910.1,2909.8,5.22143057]
[1644729988076,0.21394821,2910.5,2910.0,1.94251208]
[1644729988077,0.90818602,2910.5,2910.0,1.94251208]
[1644729988274,0.04214821,2910.5,2910.4,1.94251208]
[1644729988877,0.86603781,2910.6,2910.4,1.94251208]
[1644729989180,0.86603781,2910.7,2910.5,0.85057681]
[1644729989383,0.86603781,2910.7,2910.4,1.94251208]
[1644729989578,0.86603781,2910.7,2910.6,1.94251208]
[1644729989830,0.6459,2910.9,2910.6,1.94251208]
[1644729989831,0.86603781,2910.8,2910.6,1.94251208]
[1644729990522,0.1716,2910.9,2910.4,1.94251208]
[1644729990722,0.1716,2911.0,2910.4,1.94251208]
[1644729990922,0.1716,2911.1,2910.4,1.94251208]
[1644729991322,0.1716,2911.1,2910.4,0.38321866]
[1644729992125,0.1716,2911.1,2910.1,1.66490108]
[1644729992524,0.1716,2911.1,2910.7,0.38321866]
[1644729992725,0.01053751,2910.9,2910.2,3.35868863]
[1644729992923,0.01053751,2910.9,2910.1,1.66490108]
[1644729992924,0.01053751,2910.9,2910.5,0.38321866]
[1644729993125,0.01053751,2910.9,2910.2,3.32866132]
[1644729993325,0.01053751,2910.9,2910.8,0.38321866]
[1644729993571,0.1716,2911.2,2910.8,0.38321866]
[1644729993778,0.04214478,2911.1,2910.8,0.38321866]
[1644729994778,0.1716,2911.3,2910.8,0.38321866]
[1644729994978,8.84573781,2911.6,2910.8,0.38321866]
[1644729994979,0.01053725,2911.1,2910.8,0.38321866]
[1644729995579,0.01053725,2911.1,2910.2,3.48444174]
[1644729995780,0.01053725,2911.1,2910.5,0.38321866]
[1644729995982,0.1716,2911.5,2910.5,0.38321866]
[1644729996181,0.01053764,2910.8,2910.5,0.38321866]
[1644729997183,0.1716,2911.5,2910.5,0.38321866]
[1644729997422,0.01053764,2910.8,2910.5,0.38321866]
[1644729998420,0.64757593,2911.3,2910.5,0.38321866]
[1644729998625,0.01053764,2910.8,2910.2,0.1716]
[1644729999628,0.64757593,2911.4,2910.2,0.55481866]
[1644729999831,0.01053784,2910.6,2910.2,0.55481866]
[1644730000827,0.81917593,2911.4,2910.2,0.55481866]
[1644730001068,0.01053797,2910.5,2910.3,0.89212447]
[1644730002070,0.04214557,2911.0,2910.2,0.1716]
[1644730002071,0.1716,2911.4,2910.2,0.1716]
[1644730002269,0.04214557,2911.0,2910.5,0.38321866]
[1644730002668,1.46175143,2910.9,2910.5,0.38321866]
[1644730003468,0.01053758,2910.8,2910.5,0.38321866]
[1644730003675,0.01053758,2910.8,2910.7,0.38321866]
[1644730004473,0.00379581,2911.4,2910.7,0.38321866]
[1644730004672,0.00379581,2911.4,2910.6,0.496]
[1644730004673,0.01053751,2910.9,2910.6,0.496]
[1644730004924,0.01053751,2910.9,2910.8,0.38321866]
[1644730005522,0.00379581,2911.4,2910.8,0.38321866]
[1644730005821,0.01053738,2911.0,2910.8,0.38321866]
[1644730006822,0.00379581,2911.4,2910.8,0.38321866]
[1644730007023,0.01053731,2911.0,2910.6,0.6676]
[1644730007423,0.01053731,2911.0,2910.9,0.38321866]
[1644730008127,0.00379581,2911.4,2910.9,0.38321866]
[1644730008326,0.01053725,2911.1,2910.9,0.38321866]
[1644730009186,0.00379581,2911.4,2910.9,0.38321866]
[1644730009484,0.01053718,2911.1,2910.9,0.38321866]
[1644730010487,0.00379581,2911.4,2910.9,0.38321866]
[1644730010686,0.01053718,2911.1,2910.6,0.6676]
[1644730010887,1.46162675,2911.0,2910.6,0.6676]
[1644730011086,0.00379581,2910.9,2910.6,0.6676]
[1644730011486,0.00379581,2910.9,2910.5,0.11711555]
[1644730011687,0.00379581,2910.9,2910.8,0.38321866]
[1644730011887,0.01053751,2910.9,2910.8,0.38321866]
[1644730012725,0.00379581,2911.3,2910.8,0.38321866]
[1644730013024,0.01053738,2911.0,2910.8,0.38321866]
[1644730013625,1.46161145,2910.9,2910.8,0.38321866]
[1644730014225,0.01053738,2911.0,2910.8,0.38321866]
[1644730015125,0.17539581,2911.5,2910.8,0.38321866]
[1644730015323,1.46156986,2911.4,2911.2,0.38321866]
[1644730016373,1.46156986,2911.4,2911.2,1.41472824]
[1644730016582,1.47210665,2911.4,2911.2,1.41472824]
[1644730016777,0.01053679,2911.4,2911.2,1.58681953]
[1644730017579,0.17539581,2911.5,2911.2,1.58681953]
[1644730017780,1.46135721,2911.4,2911.2,1.20360087]
[1644730018086,1.471894,2911.4,2911.3,0.38321866]
[1644730018783,1.46135721,2911.4,2911.3,0.38321866]
[1644730018983,1.46515302,2911.7,2911.3,0.38321866]
[1644730019185,0.01053672,2911.5,2911.3,0.38321866]
[1644730019390,1.46145548,2911.4,2911.3,0.38321866]
[1644730019590,1.46145548,2911.4,2910.6,0.1716]
[1644730019837,1.46145548,2911.4,2910.5,1.1986]
[1644730019838,0.00379581,2911.3,2910.5,1.1986]
[1644730020025,1.63685129,2911.3,2910.4,0.38321866]
[1644730020226,0.00670395,2911.1,2910.4,0.38321866]
[1644730020423,1.46145548,2911.0,2910.4,0.38321866]
[1644730020628,0.00379581,2910.9,2910.5,1.12732845]
[1644730021024,0.00379581,2910.9,2910.6,0.38321866]
[1644730021222,0.00379581,2910.9,2910.5,1.12732845]
[1644730021423,0.00670395,2910.8,2910.5,1.12732845]
[1644730021825,0.01049976,2910.8,2910.7,0.38321866]
[1644730022025,0.00670395,2910.8,2910.7,0.38321866]
[1644730022430,0.05715495,2911.4,2910.7,0.38321866]
[1644730022627,0.0105425,2910.9,2910.7,0.38321866]
[1644730023675,0.05715495,2911.4,2910.7,0.38321866]
[1644730023874,0.01054244,2910.9,2910.7,0.38321866]
[1644730024076,1.46157725,2910.8,2910.7,0.38321866]
[1644730025078,0.0105425,2910.9,2910.7,0.38321866]
[1644730025478,1.46158541,2910.8,2910.7,0.38321866]
[1644730026277,0.0105425,2910.9,2910.7,0.38321866]
[1644730027335,0.05297718,2910.9,2910.7,0.38321866]
[1644730027527,0.06320335,2910.9,2910.7,0.38321866]
[1644730028432,0.05297718,2910.9,2910.7,0.38321866]
[1644730028632,0.06320335,2910.9,2910.7,0.38321866]
[1644730029634,0.05297718,2910.9,2910.7,0.38321866]
[1644730029933,0.06320335,2910.9,2910.8,0.1716]
[1644730030535,0.06320335,2910.9,2910.8,0.6676]
[1644730030937,0.05297718,2910.9,2910.8,0.6676]
[1644730031769,0.00998324,2911.0,2910.8,0.6676]
[1644730031970,0.00379581,2911.7,2910.8,0.6676]
[1644730032169,0.00379581,2911.7,2910.8,4.0161904]
[1644730032369,0.00998324,2911.0,2910.8,4.0161904]
[1644730032569,0.00998324,2911.0,2910.8,0.6676]
[1644730032771,0.00998324,2911.0,2910.9,3.90118399]
[1644730032970,0.00998324,2911.0,2910.9,4.39718399]
[1644730033171,0.00379581,2911.8,2910.9,5.39718399]
[1644730033373,0.00379581,2911.8,2911.5,1.03534599]
[1644730033374,1.46506935,2911.8,2911.5,1.03534599]
[1644730033578,1.46506935,2911.8,2911.4,1.34061846]
[1644730033579,0.03992653,2911.5,2911.4,1.34061846]
[1644730034175,1.50120007,2911.5,2911.4,1.34061846]
[1644730034377,1.46506935,2911.5,2911.4,1.34061846]
[1644730034576,1.46127354,2911.5,2911.4,1.34061846]
[1644730038022,1.46127354,2911.5,2911.4,0.38321866]
[1644730039475,0.0099978,2911.6,2911.4,0.38321866]
[1644730039675,1.46127354,2911.5,2911.4,0.38321866]
[1644730041876,0.00999788,2911.6,2911.4,0.38321866]
[1644730042077,1.46127354,2911.5,2911.4,0.38321866]
[1644730046579,0.00379581,2911.9,2911.4,0.38321866]
[1644730046775,2.11262863,2912.0,2911.4,0.38321866]
[1644730046975,1.46508647,2911.9,2911.4,0.38321866]
[1644730047375,1.46508647,2911.9,2911.3,0.7506411]
[1644730047577,1.46508647,2911.9,2911.8,0.38321866]
[1644730048177,0.00381293,2911.9,2911.8,0.38321866]
[1644730049184,0.61136961,2912.0,2911.6,0.38321866]
[1644730049380,0.00381293,2911.9,2911.6,0.38321866]
[1644730049920,0.00381293,2911.9,2911.3,0.7506411]
[1644730051119,0.00381293,2911.9,2911.7,0.38321866]
[1644730051920,0.0575539,2911.9,2911.7,0.38321866]
[1644730052221,1.46127354,2911.8,2911.7,0.38321866]
[1644730053677,0.76643731,2911.4,2911.3,0.7506411]
[1644730054479,2.22771085,2911.4,2911.3,0.7506411]
[1644730058123,2.22771085,2911.4,2911.3,3.98881245]
[1644730058324,2.22771085,2911.4,2911.3,0.7506411]
[1644730061671,2.28106999,2911.4,2911.3,0.496]
[1644730064078,2.28106999,2911.4,2911.3,0.66809129]
[1644730065124,2.28106999,2911.4,2911.3,3.93590248]
[1644730065523,2.28106999,2911.4,2911.3,0.66809129]
[1644730066926,2.28106999,2911.4,2911.3,1.66422433]
[1644730067228,2.22771085,2911.4,2911.3,1.66422433]
[1644730068884,2.22771085,2911.4,2911.3,2.66422433]
[1644730069282,0.76643731,2911.4,2911.3,5.92197343]
[1644730070683,0.76643731,2911.4,2911.3,2.66422433]
[1644730071182,2.22751488,2911.4,2911.3,2.66422433]
[1644730071384,0.76643731,2911.4,2911.3,2.66422433]
[1644730071785,0.00381293,2911.9,2911.3,2.83582433]
[1644730071984,0.00381293,2911.9,2911.4,1.71676]
[1644730071985,0.00999809,2911.7,2911.4,1.71676]
[1644730072184,1.46099617,2911.6,2911.4,3.0711]
[1644730072428,1.46099617,2911.6,2911.4,4.0711]
[1644730073223,0.00999844,2911.7,2911.4,4.0711]
[1644730073423,1.46097238,2911.6,2911.4,4.0711]
[1644730074033,0.00999844,2911.7,2911.5,3.90836]
[1644730074235,0.00381293,2911.9,2911.6,1.3782799]
[1644730074432,4.32504505,2912.6,2911.6,2.55037119]
[1644730074433,0.00999715,2911.7,2911.6,2.55037119]
[1644730074630,0.00999715,2911.7,2911.6,2.6782799]
[1644730074831,0.00999715,2911.7,2911.6,2.8498799]
[1644730075033,0.00999715,2911.7,2911.6,3.02197119]
[1644730075228,0.04379155,2912.5,2911.6,3.02197119]
[1644730075229,0.00381293,2912.5,2911.6,3.02197119]
[1644730075431,0.00381293,2912.5,2911.6,2.72197119]
[1644730075630,0.00999733,2911.8,2911.6,2.72197119]
[1644730076476,0.00381293,2912.3,2911.6,2.72197119]
[1644730076679,0.00381293,2912.3,2911.2,0.0341372]
[1644730076880,0.00999727,2911.8,2911.5,0.03407134]
[1644730077687,3.65741989,2912.1,2911.6,0.87547727]
[1644730077880,0.00999737,2911.8,2911.5,0.03407134]
[1644730079483,0.00999737,2911.8,2911.5,1.20260933]
[1644730080127,3.65741989,2912.1,2911.5,1.20260933]
[1644730080329,0.00999737,2911.8,2911.5,1.20260933]
[1644730081225,3.19304466,2912.2,2911.5,1.20260933]
[1644730081226,3.84648971,2912.2,2911.5,1.20260933]
[1644730081426,3.89221648,2912.2,2911.5,1.20260933]
[1644730081625,0.00999737,2911.8,2911.5,1.20260933]
[1644730082227,3.49557307,2912.4,2911.5,1.20260933]
[1644730082427,3.58881772,2912.4,2911.5,1.20260933]
[1644730082627,3.41711772,2912.4,2911.5,1.20260933]
[1644730085277,0.01054092,2912.1,2911.5,1.21315253]
[1644730085877,0.01054092,2912.1,2911.5,0.04461454]
[1644730086082,3.41711772,2912.4,2911.5,0.03407134]
[1644730086280,0.01054112,2911.9,2911.5,0.04461419]
[1644730087344,3.61354019,2912.4,2911.5,0.03407134]
[1644730087534,0.01054089,2911.9,2911.5,1.06011153]
[1644730087933,0.01054089,2911.9,2911.5,0.04461396]
[1644730088534,4.479578,2912.4,2911.5,0.03407134]
[1644730088740,0.01054089,2911.9,2911.5,0.04461396]
[1644730089841,3.61354019,2912.4,2911.6,1.094056]
[1644730090040,0.01054089,2911.9,2911.6,1.094056]
[1644730090840,3.78514019,2912.4,2911.6,1.094056]
[1644730091074,0.86603781,2912.6,2911.6,1.094056]
[1644730091075,0.010541,2911.9,2911.6,1.094056]
[1644730092074,3.41593249,2912.5,2911.6,1.094056]
[1644730092275,0.010541,2911.9,2911.6,1.094056]
[1644730093285,0.65428247,2912.3,2911.6,1.094056]
[1644730093580,0.010541,2911.9,2911.6,1.094056]
[1644730093979,1.4609888,2911.8,2911.6,1.094056]
[1644730094828,1.4609888,2911.7,2911.5,0.03242962]
[1644730095026,1.4609888,2911.6,2911.5,0.03242962]
[1644730095226,1.4609888,2911.8,2911.5,0.03242962]
[1644730095624,1.4609888,2911.8,2911.5,0.021887]
[1644730095829,7.17327688,2912.2,2911.5,0.021887]
[1644730095830,1.4609888,2911.7,2911.5,0.021887]
[1644730096028,1.4609888,2911.6,2911.5,0.03242951]
[1644730096228,1.4609888,2911.8,2911.5,0.03242951]
[1644730096930,1.4609888,2911.8,2911.5,0.021887]
[1644730097131,0.01054077,2911.9,2911.8,0.01545765]
[1644730097332,1.4714956,2911.9,2911.8,0.01545765]
[1644730098134,1.46095479,2911.9,2911.8,0.01545765]
[1644730098337,0.01054105,2912.0,2911.8,0.01545765]
[1644730098573,1.46095479,2911.9,2911.8,0.01545765]
[1644730100380,0.03091529,2911.7,2911.5,0.01054297]
[1644730100581,1.46095479,2911.6,2911.4,0.1716]
[1644730100781,1.46095479,2911.6,2911.5,0.01054297]
[1644730101782,1.46095479,2911.6,2911.4,0.1716]
[1644730101984,1.46095479,2911.6,2911.4,0.1821425]
[1644730102824,1.46095479,2911.6,2911.4,0.1716]
[1644730103225,1.46095479,2911.6,2911.4,0.18214257]
[1644730104028,1.46095479,2911.6,2911.4,0.1716]
[1644730104429,1.46095479,2911.6,2911.4,0.18214257]
[1644730105229,1.46095479,2911.6,2911.3,2.07058183]
[1644730107086,0.02128424,2911.5,2911.3,2.07058183]
[1644730107986,0.02128424,2911.5,2911.3,2.08114955]
[1644730108992,0.02128424,2911.5,2911.3,2.07058183]
[1644730109192,0.02128424,2911.5,2911.3,2.08114955]
[1644730110030,0.02128424,2911.5,2911.3,2.07058183]
[1644730110230,0.02128424,2911.5,2911.3,1.18477717]
[1644730110430,0.02128424,2911.5,2911.3,1.19534489]
[1644730110431,1.46104782,2911.4,2911.3,1.19534489]
[1644730110828,1.46104782,2911.4,2911.3,0.01056772]
[1644730111230,1.46104782,2911.4,2911.1,0.496]
[1644730111437,1.46104782,2911.4,2910.7,7.2533]
[1644730111438,1.48229836,2911.4,2910.7,7.2533]
[1644730111631,1.48229836,2911.4,2911.2,0.01056779]
[1644730111632,1.46104782,2911.3,2911.2,0.01056779]
[1644730112432,1.46104782,2911.3,2910.8,0.92867066]
[1644730112832,1.46104782,2911.3,2911.1,0.01056792]
[1644730113692,1.46104782,2911.3,2910.8,0.92867066]
[1644730113891,1.46104782,2911.3,2911.1,0.01056799]
[1644730114892,1.46104782,2911.3,2910.8,0.92867066]
[1644730115392,1.46104782,2911.3,2911.1,0.01056799]
[1644730115793,3.3033837,2911.2,2911.1,0.01056799]
[1644730115999,4.96104782,2911.2,2911.1,0.01056799]
[1644730116197,4.96104782,2911.2,2910.0,0.25]
[1644730116198,2.42374782,2911.2,2910.0,0.25]
[1644730116396,3.5,2911.1,2910.0,0.25]
[1644730116603,3.996,2911.1,2911.0,0.01056806]
[1644730116897,1.95761953,2911.1,2911.0,0.01056806]
[1644730117098,1.63331953,2911.1,2911.0,0.01056806]
[1644730117340,1.63331953,2911.1,2910.9,1.11296201]
[1644730117532,1.46161953,2911.0,2910.9,1.11684557]
[1644730117731,1.46161953,2911.1,2910.9,0.00388356]
[1644730118549,1.46161953,2911.1,2910.1,0.6676]
[1644730118932,1.46161953,2911.1,2910.9,0.01056115]
[1644730119733,1.46161953,2911.1,2910.8,1.00267871]
[1644730119934,1.46161953,2911.1,2910.9,0.01056115]
[1644730120938,1.46161953,2911.1,2910.8,1.00267871]
[1644730121186,1.46161953,2911.1,2910.9,0.01056115]
[1644730121984,0.01848588,2911.0,2910.9,0.01056115]
[1644730122186,0.01848588,2911.0,2910.8,1.00267871]
[1644730122386,0.01848588,2911.0,2910.9,0.01056115]
[1644730122786,1.47985772,2911.0,2910.9,0.01056115]
[1644730123387,1.47985772,2911.0,2910.8,1.00267871]
[1644730123587,0.01848588,2911.0,2910.8,1.00267871]
[1644730123887,0.01747673,2911.0,2910.8,1.00267871]
[1644730126036,0.01747673,2911.0,2910.8,1.01323498]
[1644730126945,0.01747673,2911.0,2910.8,1.00267871]
[1644730127139,0.02218306,2911.0,2910.8,1.00267871]
[1644730127341,1.46142133,2910.9,2910.8,1.01323498]
[1644730127540,0.02218306,2911.0,2910.8,1.01323498]
[1644730128143,0.02218306,2911.0,2910.8,1.00267871]
[1644730128341,0.02218306,2911.0,2910.8,1.01323498]
[1644730129387,0.02218306,2911.0,2910.8,1.00267871]
[1644730129692,0.02218306,2911.0,2910.8,1.01323498]
[1644730130489,0.02218306,2911.0,2910.8,1.00267871]
[1644730130891,0.02218306,2911.0,2910.8,1.01323498]
[1644730131690,0.02218306,2911.0,2910.8,1.00267871]
[1644730131890,0.02218306,2911.0,2910.8,1.01323498]
[1644730133033,0.02218306,2911.0,2910.8,1.00267871]
[1644730133231,0.02218306,2911.0,2910.8,1.01323498]
[1644730134235,0.02218306,2911.0,2910.8,1.00267871]
[1644730134436,0.02218306,2911.0,2910.8,1.01323498]
[1644730135437,0.02218306,2911.0,2910.8,1.00267871]
[1644730135637,0.02218306,2911.0,2910.8,1.01323498]
[1644730136582,0.02218306,2911.0,2910.8,1.00267871]
[1644730136784,0.02218306,2911.0,2910.8,1.01323498]
[1644730137782,0.02218306,2911.0,2910.8,1.00267871]
[1644730138083,0.02218306,2911.0,2910.8,1.01323498]
[1644730138884,0.02218306,2911.0,2910.8,1.00267871]
[1644730139286,0.02218306,2911.0,2910.8,1.01323498]
[1644730140133,0.02218306,2911.0,2910.8,1.00267871]
[1644730140337,0.02218306,2911.0,2910.8,1.01323498]
[1644730141339,0.02218306,2911.0,2910.8,1.00267871]
[1644730141534,0.02218306,2911.0,2910.8,1.01323498]
[1644730141735,0.02218306,2911.0,2910.9,0.6676]
[1644730143135,0.02115249,2911.0,2910.9,0.6676]
[1644730143334,0.02115249,2911.0,2910.9,1.6676]
[1644730143580,0.01983798,2911.0,2910.9,0.6676]
[1644730143783,0.01983798,2911.0,2910.9,1.6676]
[1644730143984,0.01983798,2911.0,2910.9,0.6676]
[1644730144284,0.01983798,2911.0,2910.9,1.6676]
[1644730144483,0.01983798,2911.0,2910.9,0.6676]
[1644730144683,0.01983798,2911.0,2910.9,1.6676]
[1644730145286,0.01983798,2911.0,2910.9,1.496]
[1644730145889,0.03091529,2911.7,2911.0,2.1]
[1644730146093,1.4610868,2911.6,2911.1,1.35454]
[1644730146288,0.03091529,2911.7,2911.1,1.65454]
[1644730146489,0.03091529,2911.7,2911.1,2.65454]
[1644730146890,0.03091529,2911.7,2911.1,1.65454]
[1644730147087,0.03091529,2911.7,2911.2,1.0]
[1644730147348,0.03091529,2911.7,2911.3,0.496]
[1644730147540,0.03091529,2911.7,2911.4,0.97663774]
[1644730147747,0.03091529,2911.7,2911.4,2.24472903]
[1644730147943,0.00382019,2912.2,2911.6,4.15]
[1644730148144,0.00382019,2912.2,2911.7,0.496]
[1644730148341,0.00382019,2912.2,2911.9,1.19194839]
[1644730148543,0.00382019,2912.2,2912.0,0.496]
[1644730148740,0.1716,2912.3,2912.0,0.496]
[1644730148941,0.00382019,2912.2,2912.0,0.496]
[1644730149141,0.1716,2912.3,2912.0,0.496]
[1644730149342,0.00382019,2912.2,2912.0,0.496]
[1644730149542,1.46456751,2912.8,2912.7,0.92414409]
[1644730149743,0.63398054,2912.4,2912.2,1.36309794]
[1644730152383,0.64455693,2912.4,2912.2,1.36309794]
[1644730153385,0.63398054,2912.4,2912.2,1.36309794]
[1644730153585,0.64064948,2912.4,2912.2,1.36309794]
[1644730154490,0.63398054,2912.4,2912.2,1.36309794]
[1644730154834,0.64064948,2912.4,2912.2,1.36309794]
[1644730156735,0.64064948,2912.4,2912.3,0.03528022]
[1644730156938,0.63398054,2912.4,2912.3,0.03528022]
[1644730157135,0.64455392,2912.4,2912.3,0.03528022]
[1644730158141,0.63398054,2912.4,2912.3,0.03528022]
[1644730160798,0.63398054,2912.4,2912.3,0.53128022]
[1644730161390,0.63398054,2912.4,2912.3,0.496]
[1644730164446,0.00382019,2913.1,2912.4,3.35]
[1644730164447,0.01057331,2912.5,2912.4,3.35]
[1644730164748,0.04228691,2912.9,2912.6,1.13144084]
[1644730164943,0.04228691,2912.9,2912.7,0.496]
[1644730165344,0.00382019,2913.7,2912.7,0.496]
[1644730165741,1.46426698,2913.7,2912.7,0.496]
[1644730167387,1.46426698,2913.7,2913.6,1.0664136]
[1644730168992,1.46426698,2913.7,2913.0,0.85798]
[1644730168993,1.46044679,2913.7,2913.0,0.85798]
[1644730169191,0.17542019,2914.0,2912.9,1.2093]
[1644730169192,1.46426698,2913.6,2912.9,1.2093]
[1644730169391,1.46044679,2913.5,2913.0,3.36104145]
[1644730169591,0.00382019,2913.5,2913.0,3.36104145]
[1644730169845,1.46043369,2913.7,2913.0,3.24423076]
[1644730170036,0.00382019,2913.6,2913.5,1.1857513]
[1644730170237,1.46043369,2913.7,2913.0,2.9354614]
[1644730170438,0.01057197,2913.5,2913.1,1.18637481]
[1644730170638,0.01057197,2913.5,2913.2,3.26279274]
[1644730170837,0.01057197,2913.5,2913.1,1.68237481]
[1644730171337,1.20032019,2914.0,2913.2,3.28218513]
[1644730171536,0.01057204,2913.4,2913.2,3.28218513]
[1644730171737,0.01057204,2913.4,2913.1,1.68237481]
[1644730172537,0.00382019,2913.8,2913.1,1.8544661]
[1644730172938,0.0105721,2913.4,2913.3,0.85791]
[1644730173236,0.0105721,2913.4,2913.1,1.8544661]
[1644730173889,0.00382019,2914.0,2913.7,1.05760466]
[1644730174090,0.04228208,2913.8,2913.7,1.05760466]
[1644730175190,0.17542019,2914.3,2913.7,1.05760466]
[1644730175391,0.01057143,2913.9,2913.7,1.05760466]
[1644730175895,0.01057143,2913.9,2913.7,1.22969595]
[1644730176300,0.0453151,2914.4,2913.7,1.05760466]
[1644730176492,0.01057137,2913.9,2913.7,1.05760466]
[1644730177433,0.04092649,2914.3,2913.7,1.05760466]
[1644730177734,0.01057137,2913.9,2913.7,1.05760466]
[1644730178640,0.04035806,2914.2,2913.4,1.3717]
[1644730178848,0.01057137,2913.9,2913.4,1.3717]
[1644730179842,0.04417825,2914.2,2913.4,1.3717]
[1644730180041,1.46017071,2914.1,2913.8,1.13820558]
[1644730180243,0.00382019,2914.0,2913.8,1.13820558]
[1644730180540,0.00382019,2914.0,2913.4,1.3717]
[1644730181388,0.0105715,2913.8,2913.4,1.3717]
[1644730181585,0.0105715,2913.8,2913.5,1.11636818]
[1644730181984,0.0105715,2913.8,2913.5,2.83187818]
[1644730182186,0.04035806,2914.2,2913.5,2.83187818]
[1644730182383,0.04035806,2914.2,2914.1,0.9703116]
[1644730182587,0.08263799,2914.2,2914.1,0.9703116]
[1644730182786,0.08263799,2914.2,2914.1,1.14240289]
[1644730183385,0.04035806,2914.2,2914.1,1.14240289]
[1644730186337,0.04035806,2914.2,2914.1,0.9703116]
[1644730186738,0.04035806,2914.2,2914.1,1.01446169]
[1644730188144,0.04035806,2914.2,2914.1,1.18655298]
[1644730188584,0.04035806,2914.2,2914.1,1.01446169]
[1644730190492,0.04035806,2914.2,2914.1,0.04415009]
[1644730190698,0.04035806,2914.2,2913.8,0.1715]